fUST/lending_fUST_20250105
["ID","MTS","AMOUNT","RATE_DAILY","PERIOD"]
[347646218,1736009447768,-233.82306079,0.00019452,3]
[347646219,1736009447779,-500.0,0.00019452,3]
[347646220,1736009447788,-500.0,0.00019452,3]
[347646221,1736009447797,-612.99,0.00019452,3]
[347646222,1736009447807,-500.0,0.00019452,3]
[347646223,1736009447816,-500.0,0.00019452,3]
[347646224,1736009447826,-1161.84,0.00019452,3]
[347646225,1736009447835,-500.0,0.00019452,3]
[347646226,1736009447844,-500.0,0.00019452,3]
[347646227,1736009447854,-500.0,0.00019452,3]
[347646228,1736009447863,-500.0,0.00019452,3]
[347646229,1736009447872,-500.0,0.00019452,3]
[347646230,1736009447881,-500.0,0.00019452,3]
[347646231,1736009447890,-2317.05,0.00019452,3]
[347646232,1736009447899,-500.0,0.00019452,3]
[347646233,1736009447908,-2108.19,0.00019452,3]
[347646234,1736009447917,-500.0,0.00019452,3]
[347646235,1736009447926,-500.0,0.00019452,3]
[347646236,1736009447935,-500.0,0.00019452,3]
[347646237,1736009447944,-500.0,0.00019452,3]
[347646238,1736009447954,-500.0,0.00019452,3]
[347646239,1736009447963,-500.0,0.00019452,3]
[347646240,1736009447972,-500.0,0.00019452,3]
[347646241,1736009447981,-500.0,0.00019452,3]
[347646242,1736009447990,-2758.85,0.00019452,3]
[347646243,1736009447999,-500.0,0.00019452,3]
[347646244,1736009448009,-61385.66,0.00019452,3]
[347646245,1736009448019,-1377.81,0.00019452,3]
[347646246,1736009448029,-500.0,0.00019452,3]
[347646247,1736009448039,-902.99,0.00019452,3]
[347646248,1736009448049,-500.0,0.00019452,3]
[347646249,1736009448059,-1092.09,0.00019452,3]
[347646250,1736009448069,-500.0,0.00019452,3]
[347646251,1736009448079,-3014.05,0.00019452,3]
[347646252,1736009448088,-500.0,0.00019452,3]
[347646253,1736009448097,-500.0,0.00019452,3]
[347646254,1736009448106,-500.0,0.00019452,3]
[347646255,1736009448116,-654.1,0.00019452,3]
[347646256,1736009448126,-500.0,0.00019452,3]
[347646257,1736009448135,-500.0,0.00019452,3]
[347646258,1736009448144,-500.0,0.00019452,3]
[347646259,1736009448153,-618.87,0.00019452,3]
[347646260,1736009448163,-2692.91,0.00019452,3]
[347646261,1736009448172,-500.0,0.00019452,3]
[347646262,1736009448181,-500.0,0.00019452,3]
[347646263,1736009448190,-1793.11,0.00019452,3]
[347646264,1736009448200,-500.0,0.00019452,3]
[347646265,1736009448209,-6825.69,0.00019452,3]
[347646266,1736009448218,-500.0,0.00019452,3]
[347646267,1736009448227,-500.0,0.00019452,3]
[347646268,1736009448236,-500.0,0.00019452,3]
[347646269,1736009448246,-500.0,0.00019452,3]
[347646270,1736009448257,-1213.24,0.00019452,3]
[347646271,1736009448267,-500.0,0.00019452,3]
[347646272,1736009448277,-633.47980713,0.00019452,3]
[347646273,1736009448286,-1656.97,0.00019452,3]
[347646274,1736009448296,-1665.67,0.00019452,3]
[347646275,1736009448305,-500.0,0.00019452,3]
[347646276,1736009448314,-500.0,0.00019452,3]
[347646277,1736009448324,-500.0,0.00019452,3]
[347646278,1736009448333,-500.0,0.00019452,3]
[347646279,1736009448342,-500.0,0.00019452,3]
[347646280,1736009448351,-500.0,0.00019452,3]
[347646281,1736009448361,-500.0,0.00019452,3]
[347646282,1736009448370,-612.82,0.00019452,3]
[347646283,1736009448380,-500.0,0.00019452,3]
[347646284,1736009448389,-621.48,0.00019452,3]
[347646285,1736009448398,-2206.02,0.00019452,3]
[347646286,1736009448407,-518.44,0.00019452,3]
[347646287,1736009448417,-500.0,0.00019452,2]
[347646288,1736009448426,-786.63,0.00019452,2]
[347646289,1736009448435,-501.89852628,0.00019452,3]
[347646290,1736009448445,-2500.0,0.00019455,2]
[347646291,1736009448454,-2500.0,0.00019464,2]
[347646292,1736009448463,-2500.0,0.00019472,2]
[347646293,1736009448472,-500.0,0.00019473,2]
[347646294,1736009448481,-500.0,0.00019473,2]
[347646295,1736009448490,-500.50563966,0.00019473,2]
[347646296,1736009448569,-500.43794056,0.00019473,2]
[347646297,1736009448578,-500.0,0.00019473,2]
[347646298,1736009448588,-500.0,0.00019473,2]
[347646299,1736009448602,-326.76395606,0.00019473,2]
[347646300,1736009448611,-484.58326725,0.00019473,2]
[347646301,1736009448620,-152.13355655,0.00019473,2]
[347646302,1736009448629,-500.0,0.00019473,2]
[347646303,1736009448640,-500.0,0.00019473,2]
[347646304,1736009448649,-2500.0,0.00019481,2]
[347646305,1736009448658,-2500.0,0.0001949,2]
[347646306,1736009448668,-2500.0,0.00019499,2]
[347646307,1736009448677,-302.9394212,0.0001957,2]
[347646308,1736009448686,-500.0,0.00019588,2]
[347646309,1736009448696,-2755.45557056,0.0001959,2]
[347646310,1736009448706,-444.0,0.000196,2]
[347646311,1736009448715,-151.0,0.000196,2]
[347646312,1736009448724,-151.0,0.000196,2]
[347646313,1736009448733,-2526.00698479,0.00019626,2]
[347646314,1736009448743,-11003.74897616,0.00019668,2]
[347646315,1736009448753,-4604.82213456,0.000197,2]
[347646316,1736009448762,-4604.82213456,0.000197,2]
[347646317,1736009448771,-4604.82213456,0.000197,2]
[347646318,1736009448780,-4604.82213456,0.000197,2]
[347646319,1736009448790,-2000.0,0.000197,2]
[347646320,1736009448800,-2000.0,0.000197,2]
[347646321,1736009448809,-579.36681725,0.00019721,2]
[347646322,1736009448819,-1000.0,0.00019721,2]
[347646323,1736009448828,-320.02807398,0.00019721,2]
[347646324,1736009448838,-503.31740863,0.00019721,2]
[347646325,1736009448847,-1001.48914645,0.00019721,2]
[347646326,1736009448856,-1000.0,0.00019721,2]
[347646327,1736009448866,-1000.0,0.00019721,2]
[347646328,1736009448876,-500.0,0.00019721,2]
[347646329,1736009448885,-1000.0,0.00019721,2]
[347646330,1736009448895,-500.56620949,0.00019721,2]
[347646331,1736009448905,-500.0,0.00019721,2]
[347646332,1736009448914,-500.0,0.00019725,2]
[347646333,1736009448924,-10837.34749879,0.00019726,2]
[347646334,1736009448934,-147870.84102269,0.00019726,2]
[347646335,1736009448943,-500.0,0.00019726,2]
[347646336,1736009448953,-500.0,0.00019726,3]
[347646337,1736009448962,-511.71731968,0.00019726,3]
[347646338,1736009448972,-500.0,0.00019726,3]
[347646339,1736009448982,-502.95937257,0.00019726,3]
[347646340,1736009448991,-500.0,0.00019726,3]
[347646341,1736009449000,-500.0,0.00019726,3]
[347646342,1736009449010,-500.0,0.00019726,3]
[347646343,1736009449020,-500.0,0.00019726,3]
[347646344,1736009449030,-500.0,0.00019726,3]
[347646345,1736009449039,-500.0,0.00019726,3]
[347646346,1736009449048,-506.69220242,0.00019726,3]
[347646347,1736009449058,-500.0,0.00019726,3]
[347646348,1736009449067,-627.54,0.00019726,3]
[347646349,1736009449076,-500.0,0.00019726,3]
[347646350,1736009449086,-500.0,0.00019726,3]
[347646351,1736009449110,-500.0,0.00019726,3]
[347646352,1736009449127,-500.0,0.00019726,3]
[347646353,1736009449146,-500.0,0.00019726,3]
[347646354,1736009449166,-500.0,0.00019726,3]
[347646355,1736009449184,-538.06,0.00019726,3]
[347646356,1736009449204,-500.0,0.00019726,3]
[347646357,1736009449220,-500.0,0.00019726,3]
[347646358,1736009449236,-500.0,0.00019726,3]
[347646359,1736009449254,-270.30068023,0.00019726,3]
[347646360,1736009449273,-500.0,0.00019726,3]
[347646361,1736009449290,-500.0,0.00019726,3]
[347646362,1736009449305,-500.0,0.00019726,3]
[347646363,1736009449324,-500.0,0.00019726,3]
[347646364,1736009449340,-600.65,0.00019726,3]
[347646365,1736009449353,-375.6413799,0.00019726,3]
[347646366,1736009449368,-500.0,0.00019726,3]
[347646367,1736009449384,-500.0,0.00019726,3]
[347646368,1736009449398,-500.0,0.00019726,3]
[347646369,1736009449413,-500.0,0.00019726,3]
[347646370,1736009449428,-500.0,0.00019726,3]
[347646371,1736009449444,-297.23462416,0.00019726,3]
[347646372,1736009449461,-507.92,0.00019726,3]
[347646373,1736009449475,-500.0,0.00019726,3]
[347646374,1736009449490,-500.0,0.00019726,3]
[347646375,1736009449504,-500.0,0.00019726,3]
[347646376,1736009449519,-500.0,0.00019726,3]
[347646377,1736009449533,-500.0,0.00019726,3]
[347646378,1736009449548,-500.0,0.00019726,3]
[347646379,1736009449563,-500.0,0.00019726,3]
[347646380,1736009449580,-500.0,0.00019726,3]
[347646381,1736009449596,-500.0,0.00019726,3]
[347646382,1736009449612,-500.0,0.00019726,3]
[347646383,1736009449626,-239.04128221,0.00019726,3]
[347646384,1736009449643,-203.95968376,0.00019726,3]
[347646385,1736009449658,-500.0,0.00019726,3]
[347646386,1736009449675,-508.30844112,0.00019726,3]
[347646387,1736009449692,-500.0,0.00019726,3]
[347646388,1736009449707,-500.0,0.00019726,3]
[347646389,1736009449721,-500.0,0.00019726,3]
[347646390,1736009449736,-500.0,0.00019726,3]
[347646391,1736009449751,-607.38,0.00019726,3]
[347646392,1736009449766,-500.0,0.00019726,3]
[347646393,1736009449780,-500.0,0.00019726,3]
[347646394,1736009449795,-500.0,0.00019726,3]
[347646395,1736009449810,-500.0,0.00019726,3]
[347646396,1736009449824,-500.0,0.00019726,3]
[347646397,1736009449838,-500.0,0.00019726,3]
[347646398,1736009449853,-707.71,0.00019726,3]
[347646399,1736009449868,-500.0,0.00019726,3]
[347646400,1736009449883,-500.0,0.00019726,3]
[347646401,1736009449898,-500.0,0.00019726,3]
[347646402,1736009449913,-1239.05,0.00019726,3]
[347646403,1736009449927,-500.0,0.00019726,3]
[347646404,1736009450039,-500.0,0.00019726,3]
[347646405,1736009450049,-500.0,0.00019726,3]
[347646406,1736009450059,-500.0,0.00019726,3]
[347646407,1736009450068,-11886.45,0.00019726,3]
[347646408,1736009450077,-500.0,0.00019726,3]
[347646409,1736009450086,-500.0,0.00019726,3]
[347646410,1736009450095,-547.48,0.00019726,3]
[347646411,1736009450104,-500.0,0.00019726,3]
[347646412,1736009450113,-297.7701512,0.00019726,3]
[347646413,1736009450122,-500.0,0.00019726,3]
[347646414,1736009450131,-500.0,0.00019726,3]
[347646415,1736009450140,-500.0,0.00019726,3]
[347646416,1736009450150,-500.0,0.00019726,3]
[347646417,1736009450160,-680.51,0.00019726,3]
[347646418,1736009450169,-500.0,0.00019726,3]
[347646419,1736009450178,-500.0,0.00019726,3]
[347646420,1736009450187,-598.36,0.00019726,3]
[347646421,1736009450197,-1838.38,0.00019726,3]
[347646422,1736009450206,-500.0,0.00019726,3]
[347646423,1736009450215,-500.0,0.00019726,3]
[347646424,1736009450224,-500.0,0.00019726,3]
[347646425,1736009450233,-500.0,0.00019726,3]
[347646426,1736009450243,-500.0,0.00019726,3]
[347646427,1736009450252,-500.0,0.00019726,3]
[347646428,1736009450262,-500.0,0.00019726,3]
[347646429,1736009450273,-500.0,0.00019726,3]
[347646430,1736009450283,-500.0,0.00019726,3]
[347646431,1736009450292,-500.0,0.00019726,3]
[347646432,1736009450301,-500.0,0.00019726,3]
[347646433,1736009450310,-433.11938366,0.00019726,2]
[347646434,1736009450320,-500.0,0.00019726,3]
[347646435,1736009450329,-406.59965588,0.00019726,3]
[347646436,1736009450338,-500.0,0.00019726,3]
[347646437,1736009450347,-188.0,0.00019726,2]
[347646438,1736009450356,-516.69,0.00019726,3]
[347646439,1736009450366,-541.11950064,0.00019726,3]
[347646440,1736009450376,-1419.34,0.00019726,3]
[347646441,1736009450385,-500.0,0.00019726,3]
[347646442,1736009450394,-500.0,0.00019726,3]
[347646443,1736009450403,-500.0,0.00019726,3]
[347646444,1736009450413,-500.0,0.00019726,3]
[347646445,1736009450422,-500.0,0.00019726,3]
[347646446,1736009450431,-500.0,0.00019726,3]
[347646447,1736009450440,-500.0,0.00019726,3]
[347646448,1736009450449,-500.0,0.00019726,3]
[347646449,1736009450459,-500.0,0.00019726,3]
[347646450,1736009450468,-500.0,0.00019726,3]
[347646451,1736009450477,-1176.36,0.00019726,3]
[347646452,1736009450487,-1058.64,0.00019726,3]
[347646453,1736009450496,-500.0,0.00019726,3]
[347646454,1736009450510,-1801.24,0.00019726,3]
[347646455,1736009450519,-500.0,0.00019726,3]
[347646456,1736009450529,-500.0,0.00019726,3]
[347646457,1736009450538,-1143.49,0.00019726,3]
[347646458,1736009450548,-890.49,0.00019726,3]
[347646459,1736009450557,-500.0,0.00019726,3]
[347646460,1736009450566,-500.0,0.00019726,3]
[347646461,1736009450576,-449.85976963,0.00019726,3]
[347646462,1736009450585,-500.0,0.00019726,3]
[347646463,1736009450594,-500.0,0.00019726,3]
[347646464,1736009450608,-643.83,0.00019726,3]
[347646465,1736009450617,-500.0,0.00019726,3]
[347646466,1736009450626,-500.0,0.00019726,3]
[347646467,1736009450636,-1626.14,0.00019726,3]
[347646468,1736009450646,-500.0,0.00019726,3]
[347646469,1736009450655,-751.44,0.00019726,3]
[347646470,1736009450665,-500.0,0.00019726,3]
[347646471,1736009450675,-500.0,0.00019726,3]
[347646472,1736009450684,-997.09,0.00019726,3]
[347646473,1736009450694,-500.0,0.00019726,3]
[347646474,1736009450703,-1181.89,0.00019726,3]
[347646475,1736009450713,-500.0,0.00019726,3]
[347646476,1736009450722,-500.0,0.00019726,3]
[347646477,1736009450731,-500.0,0.00019726,3]
[347646478,1736009450740,-500.0,0.00019726,3]
[347646479,1736009450750,-500.0,0.00019726,3]
[347646480,1736009450764,-547.4,0.00019726,3]
[347646481,1736009450774,-500.0,0.00019726,3]
[347646482,1736009450783,-500.0,0.00019726,3]
[347646483,1736009450793,-500.0,0.00019726,3]
[347646484,1736009450802,-500.0,0.00019726,3]
[347646485,1736009450811,-544.84,0.00019726,3]
[347646486,1736009450820,-500.0,0.00019726,3]
[347646487,1736009450830,-500.0,0.00019726,3]
[347646488,1736009450839,-500.0,0.00019726,3]
[347646489,1736009450848,-998.72,0.00019726,3]
[347646490,1736009450857,-500.0,0.00019726,3]
[347646491,1736009450867,-500.0,0.00019726,3]
[347646492,1736009450877,-1188.16,0.00019726,3]
[347646493,1736009450886,-500.0,0.00019726,3]
[347646494,1736009450896,-500.0,0.00019726,3]
[347646495,1736009450905,-500.0,0.00019726,3]
[347646496,1736009450915,-982.66,0.00019726,3]
[347646497,1736009450924,-500.0,0.00019726,3]
[347646498,1736009450934,-500.0,0.00019726,3]
[347646499,1736009450944,-500.0,0.00019726,3]
[347646500,1736009450954,-1242.19,0.00019726,3]
[347646501,1736009450963,-500.0,0.00019726,3]
[347646502,1736009450973,-976.94,0.00019726,3]
[347646503,1736009450983,-500.0,0.00019726,3]
[347646504,1736009450992,-500.0,0.00019726,3]
[347646505,1736009451002,-312.97883497,0.00019726,3]
[347646506,1736009451012,-500.0,0.00019726,3]
[347646507,1736009451021,-500.0,0.00019726,3]
[347646508,1736009451031,-500.0,0.00019726,3]
[347646509,1736009451040,-500.0,0.00019726,3]
[347646510,1736009451050,-500.0,0.00019726,3]
[347646511,1736009451059,-500.0,0.00019726,3]
[347646512,1736009451069,-500.0,0.00019726,3]
[347646513,1736009451079,-501.6776997,0.00019726,3]
[347646514,1736009451089,-500.0,0.00019726,3]
[347646515,1736009451100,-500.0,0.00019726,3]
[347646516,1736009451111,-500.0,0.00019726,3]
[347646517,1736009451120,-500.0,0.00019726,3]
[347646518,1736009451129,-500.0,0.00019726,3]
[347646519,1736009451138,-1891.14,0.00019726,3]
[347646520,1736009451148,-500.0,0.00019726,3]
[347646521,1736009451157,-500.0,0.00019726,3]
[347646522,1736009451167,-500.0,0.00019726,3]
[347646523,1736009451176,-500.0,0.00019726,3]
[347646524,1736009451186,-561.97,0.00019726,3]
[347646525,1736009451195,-500.0,0.00019726,3]
[347646526,1736009451204,-1028.88,0.00019726,3]
[347646527,1736009451213,-720.72,0.00019726,3]
[347646528,1736009451223,-500.0,0.00019726,3]
[347646529,1736009451232,-500.0,0.00019726,3]
[347646530,1736009451242,-500.0,0.00019726,3]
[347646531,1736009451252,-500.0,0.00019726,3]
[347646532,1736009451262,-1498.86,0.00019726,3]
[347646533,1736009451271,-500.0,0.00019726,3]
[347646534,1736009451280,-723.5,0.00019726,3]
[347646535,1736009451290,-634.26002248,0.00019726,3]
[347646536,1736009451299,-500.0,0.00019726,3]
[347646537,1736009451308,-500.0,0.00019726,3]
[347646538,1736009451317,-1135.62,0.00019726,3]
[347646539,1736009451327,-580.16,0.00019726,3]
[347646540,1736009451336,-500.0,0.00019726,3]
[347646541,1736009451345,-500.0,0.00019726,3]
[347646542,1736009451354,-500.0,0.00019726,3]
[347646543,1736009451363,-500.0,0.00019726,3]
[347646544,1736009451373,-500.0,0.00019726,3]
[347646545,1736009451455,-509.64122809,0.00019726,3]
[347646546,1736009451467,-1006.63,0.00019726,3]
[347646547,1736009451476,-500.0,0.00019726,3]
[347646548,1736009451485,-500.0,0.00019726,3]
[347646549,1736009451495,-500.0,0.00019726,3]
[347646550,1736009451505,-500.0,0.00019726,3]
[347646551,1736009451514,-500.0,0.00019726,3]
[347646552,1736009451523,-500.0,0.00019726,3]
[347646553,1736009451531,-500.0,0.00019726,3]
[347646554,1736009451540,-500.0,0.00019726,3]
[347646555,1736009451551,-500.0,0.00019726,3]
[347646556,1736009451564,-13229.23,0.00019726,3]
[347646557,1736009451573,-500.0,0.00019726,3]
[347646558,1736009451583,-500.0,0.00019726,3]
[347646559,1736009451593,-1009.83,0.00019726,3]
[347646560,1736009451608,-500.0,0.00019726,3]
[347646561,1736009451617,-2153.32,0.00019726,3]
[347646562,1736009451627,-500.0,0.00019726,3]
[347646563,1736009451636,-1078.01,0.00019726,3]
[347646564,1736009451647,-500.0,0.00019726,3]
[347646565,1736009451658,-500.0,0.00019726,3]
[347646566,1736009451668,-7167.99,0.00019726,3]
[347646567,1736009451679,-500.0,0.00019726,3]
[347646568,1736009451688,-375.05243802,0.00019726,3]
[347646569,1736009451698,-500.0,0.00019726,3]
[347646570,1736009451707,-591.96,0.00019726,3]
[347646571,1736009451717,-500.0,0.00019726,3]
[347646572,1736009451726,-500.0,0.00019726,3]
[347646573,1736009451735,-522.12918579,0.00019726,3]
[347646574,1736009451750,-556.09,0.00019726,3]
[347646575,1736009451761,-629.69584933,0.00019726,3]
[347646576,1736009451770,-2421.84,0.00019726,2]
[347646577,1736009451780,-500.0,0.00019726,3]
[347646578,1736009451790,-500.0,0.00019726,3]
[347646579,1736009451800,-2242.32,0.00019726,3]
[347646580,1736009451809,-572.04,0.00019726,3]
[347646581,1736009451819,-500.0,0.00019726,3]
[347646582,1736009451828,-500.0,0.00019726,3]
[347646583,1736009451839,-580.52,0.00019726,3]
[347646584,1736009451849,-500.0,0.00019726,3]
[347646585,1736009451858,-500.0,0.00019726,3]
[347646586,1736009451869,-936.1,0.00019726,3]
[347646587,1736009451878,-2223.37,0.00019726,3]
[347646588,1736009451888,-500.0,0.00019726,3]
[347646589,1736009451897,-500.0,0.00019726,3]
[347646590,1736009451907,-500.0,0.00019726,3]
[347646591,1736009451916,-1087.77,0.00019726,3]
[347646592,1736009451925,-500.0,0.00019726,3]
[347646593,1736009451934,-500.0,0.00019726,3]
[347646594,1736009451944,-500.0,0.00019726,3]
[347646595,1736009451953,-519.75,0.00019726,3]
[347646596,1736009451963,-500.0,0.00019726,3]
[347646597,1736009451972,-500.0,0.00019726,3]
[347646598,1736009451981,-3948.36,0.00019726,3]
[347646599,1736009451991,-2657.97,0.00019726,3]
[347646600,1736009451999,-500.0,0.00019726,3]
[347646601,1736009452010,-500.0,0.00019726,3]
[347646602,1736009452020,-649.96,0.00019726,3]
[347646603,1736009452029,-1016.53174185,0.00019726,3]
[347646604,1736009452038,-500.0,0.00019726,3]
[347646605,1736009452047,-2389.19,0.00019726,3]
[347646606,1736009452057,-1425.25,0.00019726,3]
[347646607,1736009452066,-500.0,0.00019726,3]
[347646608,1736009452075,-500.0,0.00019726,3]
[347646609,1736009452085,-500.0,0.00019726,3]
[347646610,1736009452095,-1538.78,0.00019726,3]
[347646611,1736009452105,-2026.65,0.00019726,3]
[347646612,1736009452114,-500.0,0.00019726,3]
[347646613,1736009452123,-500.0,0.00019726,3]
[347646614,1736009452133,-500.0,0.00019726,3]
[347646615,1736009452143,-500.0,0.00019726,3]
[347646616,1736009452153,-1052.18,0.00019726,3]
[347646617,1736009452164,-953.93,0.00019726,3]
[347646618,1736009452174,-548.43,0.00019726,3]
[347646619,1736009452183,-500.0,0.00019726,3]
[347646620,1736009452192,-760.11,0.00019726,3]
[347646621,1736009452201,-500.0,0.00019726,3]
[347646622,1736009452212,-1383.69,0.00019726,3]
[347646623,1736009452221,-500.0,0.00019726,3]
[347646624,1736009452230,-619.21,0.00019726,3]
[347646625,1736009452240,-500.0,0.00019726,3]
[347646626,1736009452250,-2033.27,0.00019726,3]
[347646627,1736009452260,-504.48975836,0.00019726,3]
[347646628,1736009452270,-500.0,0.00019726,3]
[347646629,1736009452280,-500.0,0.00019726,3]
[347646630,1736009452290,-500.0,0.00019726,3]
[347646631,1736009452299,-500.79078365,0.00019726,2]
[347646632,1736009452308,-4269.31,0.00019726,3]
[347646633,1736009452318,-500.0,0.00019726,3]
[347646634,1736009452327,-1203.18,0.00019726,3]
[347646635,1736009452337,-500.0,0.00019726,3]
[347646636,1736009452346,-500.0,0.00019726,3]
[347646637,1736009452355,-864.29,0.00019726,3]
[347646638,1736009452365,-500.0,0.00019726,3]
[347646639,1736009452374,-500.0,0.00019726,3]
[347646640,1736009452383,-4275.07,0.00019726,3]
[347646641,1736009452394,-150.05,0.00019726,3]
[347646642,1736009452403,-500.0,0.00019726,3]
[347646643,1736009452413,-271.29475533,0.00019726,3]
[347646644,1736009452423,-500.0,0.00019726,3]
[347646645,1736009452432,-500.0,0.00019726,3]
[347646646,1736009452442,-579.26,0.00019726,3]
[347646647,1736009452451,-500.0,0.00019726,3]
[347646648,1736009452460,-4666.96,0.00019726,3]
[347646649,1736009452469,-500.0,0.00019726,3]
[347646650,1736009452479,-501.03121736,0.00019726,3]
[347646651,1736009452488,-500.0,0.00019726,3]
[347646652,1736009452497,-501.76165185,0.00019726,3]
[347646653,1736009452509,-500.0,0.00019726,3]
[347646654,1736009452518,-500.0,0.00019726,3]
[347646655,1736009452527,-612.99,0.00019726,3]
[347646656,1736009452537,-500.0,0.00019726,3]
[347646657,1736009452548,-1161.84,0.00019726,3]
[347646658,1736009452559,-500.0,0.00019726,3]
[347646659,1736009452569,-500.0,0.00019726,3]
[347646660,1736009452581,-500.0,0.00019726,3]
[347646661,1736009452592,-500.0,0.00019726,3]
[347646662,1736009452603,-500.0,0.00019726,3]
[347646663,1736009452614,-500.0,0.00019726,3]
[347646664,1736009452623,-2317.05,0.00019726,3]
[347646665,1736009452633,-306.66303073,0.00019726,3]
[347646666,1736009452643,-2108.19,0.00019726,3]
[347646667,1736009452654,-500.0,0.00019726,3]
[347646668,1736009452664,-452.87596706,0.00019726,3]
[347646669,1736009452674,-500.0,0.00019726,3]
[347646670,1736009452684,-500.0,0.00019726,3]
[347646671,1736009452695,-500.0,0.00019726,3]
[347646672,1736009452706,-500.0,0.00019726,3]
[347646673,1736009452715,-2758.85,0.00019726,3]
[347646674,1736009452725,-500.0,0.00019726,3]
[347646675,1736009452807,-61385.66,0.00019726,3]
[347646676,1736009452817,-1377.81,0.00019726,3]
[347646677,1736009452827,-500.0,0.00019726,3]
[347646678,1736009452837,-902.99,0.00019726,3]
[347646679,1736009452846,-1092.09,0.00019726,3]
[347646680,1736009452855,-500.0,0.00019726,3]
[347646681,1736009452865,-3014.05,0.00019726,3]
[347646682,1736009452874,-500.0,0.00019726,3]
[347646683,1736009452884,-500.0,0.00019726,3]
[347646684,1736009452894,-500.0,0.00019726,3]
[347646685,1736009452903,-654.1,0.00019726,3]
[347646686,1736009452912,-500.0,0.00019726,3]
[347646687,1736009452922,-500.0,0.00019726,3]
[347646688,1736009452931,-2692.91,0.00019726,3]
[347646689,1736009452941,-618.87,0.00019726,3]
[347646690,1736009452951,-500.0,0.00019726,3]
[347646691,1736009452960,-1793.11,0.00019726,3]
[347646692,1736009452970,-500.0,0.00019726,3]
[347646693,1736009452979,-500.0,0.00019726,3]
[347646694,1736009452989,-6825.69,0.00019726,3]
[347646695,1736009452998,-500.0,0.00019726,3]
[347646696,1736009453008,-500.0,0.00019726,3]
[347646697,1736009453017,-500.0,0.00019726,3]
[347646698,1736009453026,-1213.24,0.00019726,3]
[347646699,1736009453036,-500.0,0.00019726,3]
[347646700,1736009453046,-1656.97,0.00019726,3]
[347646701,1736009453055,-1665.67,0.00019726,3]
[347646702,1736009453065,-500.0,0.00019726,3]
[347646703,1736009453075,-500.0,0.00019726,3]
[347646704,1736009453084,-500.0,0.00019726,3]
[347646705,1736009453094,-500.0,0.00019726,3]
[347646706,1736009453103,-500.0,0.00019726,3]
[347646707,1736009453112,-500.0,0.00019726,3]
[347646708,1736009453122,-500.0,0.00019726,3]
[347646709,1736009453131,-612.82,0.00019726,3]
[347646710,1736009453140,-500.0,0.00019726,3]
[347646711,1736009453149,-621.48,0.00019726,3]
[347646712,1736009453158,-2206.02,0.00019726,3]
[347646713,1736009453168,-518.44,0.00019726,3]
[347646714,1736009453178,-200.0,0.00019726,2]
[347646715,1736009453188,-2755.45557056,0.00019728,2]
[347646716,1736009453197,-589.7,0.00019731,9]
[347646717,1736009453207,-365.69015929,0.0001976,2]